bitfinex-derivatives/quotes_ETHF0:USTF0_20241129
["timestamp","ask_amount","ask_price","bid_price","bid_amount"]
[1732915445278,0.2792,3577.8,3577.7,3.48701]
[1732915445478,1.30803944,3577.8,3577.7,4.02422182]
[1732915445681,1.02883944,3577.8,3577.7,3.74501182]
[1732915445983,1.30803944,3577.8,3577.7,4.02422182]
[1732915446185,1.02883944,3577.8,3577.7,4.02422182]
[1732915446378,1.30803944,3577.8,3577.7,4.02400068]
[1732915446684,1.02883944,3577.8,3577.7,4.02400068]
[1732915450074,0.27917,3578.3,3578.1,0.27917]
[1732915450272,1.02883944,3578.2,3577.7,3.48701]
[1732915450480,1.02883944,3578.2,3578.1,0.27918]
[1732915450980,1.02883944,3578.2,3578.1,0.63620273]
[1732915452182,1.02883944,3578.2,3578.1,0.27918]
[1732915452388,1.02883944,3578.2,3578.1,4.01398054]
[1732915453080,1.02883944,3578.2,3578.1,3.65698]
[1732915453280,1.02883944,3578.2,3578.1,4.0139673]
[1732915453783,1.02883944,3578.4,3578.1,3.7347873]
[1732915454085,1.02883944,3578.4,3578.3,0.27916]
[1732915454382,3.6519,3579.2,3578.3,0.27916]
[1732915454383,3.6519,3579.2,3579.1,0.2791]
[1732915454687,1.02883944,3579.2,3578.7,3.2078]
[1732915454881,1.02883944,3578.8,3578.7,3.48693]
[1732915455081,1.02883944,3578.8,3578.7,3.96376094]
[1732915456390,1.02883944,3578.8,3578.7,3.96354515]
[1732915457388,1.02883944,3578.8,3578.7,4.37774515]
[1732915457575,1.02883944,3578.8,3578.7,4.81794515]
[1732915458585,1.02883944,3578.8,3578.7,4.46133]
[1732915458782,1.02883944,3578.8,3578.7,4.81726198]
[1732915458992,1.02883944,3578.8,3578.7,4.8172604]
[1732915459286,1.02883944,3579.1,3579.0,0.27911]
[1732915459983,1.02883944,3579.1,3578.8,0.4084]
[1732915460282,0.4209,3579.1,3579.0,0.27911]
[1732915460481,0.7,3579.1,3578.9,0.27911]
[1732915460679,0.4209,3579.1,3579.0,0.27911]
[1732915460884,0.27909,3579.3,3579.1,0.2791]
[1732915461284,0.27909,3579.3,3579.2,0.4205]
[1732915461479,1.02883944,3579.3,3579.2,0.69959]
[1732915461684,0.27908,3579.4,3579.2,0.69959]
[1732915461885,1.30790944,3579.5,3579.3,0.27908]
[1732915462085,1.30790944,3579.5,3579.4,0.4378]
[1732915462888,0.27907,3579.5,3579.4,0.4378]
[1732915463188,1.30790944,3579.5,3579.4,0.4378]
[1732915469991,1.30790944,3579.5,3579.4,0.71688]
[1732915470190,1.30790944,3579.5,3579.4,0.4378]
[1732915471189,0.27909,3579.2,3579.1,3.2078]
[1732915471497,0.27909,3579.2,3579.1,3.5469]
[1732915471692,1.30792944,3579.2,3579.1,3.5469]
[1732915474592,1.30792944,3579.2,3579.1,3.2678]
[1732915476297,1.11687,3579.6,3579.1,3.2678]
[1732915476496,2.14570944,3579.6,3579.1,3.2678]
[1732915476895,0.27909,3579.3,3579.2,0.27909]
[1732915477097,0.27909,3579.2,3579.1,3.2078]
[1732915477398,0.27909,3579.2,3579.1,3.2478]
[1732915479501,0.27909,3579.2,3579.1,3.5269]
[1732915481401,1.02883944,3579.3,3579.1,3.2478]
[1732915481607,1.02883944,3579.3,3579.2,0.27909]
[1732915481812,1.02883944,3579.3,3579.2,0.31909]
[1732915482108,1.02883944,3579.3,3579.2,0.04]
[1732915482109,1.30792944,3579.3,3579.2,0.04]
[1732915482504,1.30792944,3579.3,3579.2,0.31909]
[1732915484311,1.30792944,3579.3,3579.2,0.67552598]
[1732915484608,1.02883944,3579.3,3579.2,0.67552598]
[1732915485802,1.30792944,3579.3,3579.2,0.67552598]
[1732915486702,1.30792944,3579.3,3579.2,0.675559]
[1732915486902,1.02883944,3579.3,3579.2,0.675559]
[1732915487307,1.30792944,3579.3,3579.2,0.675559]
[1732915488607,1.30792944,3579.3,3579.2,3.883359]
[1732915489104,1.30792944,3579.3,3579.2,3.604269]
[1732915489406,1.30792944,3579.3,3579.2,3.883359]
[1732915489616,1.30792944,3579.3,3579.2,3.52689]
[1732915490104,1.30792944,3579.3,3579.2,3.2478]
[1732915490504,1.30792944,3579.3,3579.2,3.52689]
[1732915491001,1.30792944,3579.3,3579.2,3.2478]
[1732915494501,1.30792944,3579.3,3579.2,0.04]
[1732915494809,1.30792944,3579.3,3579.0,0.8699]
[1732915494810,1.02883944,3579.3,3579.0,0.4189]
[1732915495014,0.2791,3579.1,3579.0,0.4189]
[1732915495521,0.7185,3579.1,3579.0,0.4189]
[1732915495710,0.2791,3579.1,3579.0,0.69801]
[1732915496213,0.2791,3579.1,3579.0,0.4189]
[1732915497210,0.27912,3578.9,3578.8,3.2078]
[1732915497409,0.27912,3578.9,3578.8,3.84328629]
[1732915498616,0.27912,3578.9,3578.8,3.56416629]
[1732915499009,0.27912,3578.9,3578.8,3.84328629]
[1732915499208,1.02883944,3579.0,3578.8,3.84328629]
[1732915499209,1.02883944,3579.0,3578.8,3.56416629]
[1732915499417,1.02883944,3579.0,3578.8,3.48692]
[1732915499418,0.27912,3578.9,3578.8,3.48692]
[1732915499622,0.27912,3578.9,3578.8,3.84322739]
[1732915500304,1.02883944,3579.0,3578.8,3.56410739]
[1732915500510,0.27912,3578.9,3578.8,3.48692]
[1732915500711,0.27912,3578.9,3578.8,3.84322196]
[1732915501215,0.27912,3578.9,3578.8,3.56410196]
[1732915501716,0.4394,3579.4,3578.8,4.9529414]
[1732915501920,0.27912,3578.9,3578.8,3.5678]
[1732915502110,0.27912,3578.9,3578.8,3.92407378]
[1732915502316,0.27912,3578.9,3578.8,3.56407378]
[1732915503019,0.27912,3578.9,3578.8,3.84319378]
[1732915503214,1.72655944,3579.3,3578.8,3.56407378]
[1732915503530,0.4394,3579.4,3578.9,0.35625639]
[1732915503710,0.4394,3579.4,3578.8,3.2678]
[1732915503711,0.27911,3579.1,3579.0,0.70161]
[1732915504920,4.93431944,3579.6,3579.0,0.8525]
[1732915504921,1.02883944,3579.6,3579.0,0.8525]
[1732915505123,0.27909,3579.3,3579.2,3.48689]
[1732915505318,0.27908,3579.4,3579.3,0.27909]
[1732915505522,0.27908,3579.4,3579.2,3.2078]
[1732915505726,0.27907,3579.5,3579.2,3.5078]
[1732915506124,0.27907,3579.5,3579.4,0.27908]
[1732915506729,0.27907,3579.5,3579.2,3.2078]
[1732915507023,1.44293944,3579.7,3579.3,0.35603403]
[1732915507220,0.27908,3579.5,3579.3,0.27908]
[1732915507928,1.44293944,3579.7,3579.2,3.2078]
[1732915508225,0.27907,3579.6,3579.4,0.27907]
[1732915508417,1.44293944,3579.7,3579.2,3.2078]
[1732915508722,0.27907,3579.5,3579.4,0.27908]
[1732915509323,0.27906,3579.6,3579.5,0.27906]
[1732915509625,1.72199944,3579.7,3579.5,0.27906]
[1732915509827,1.72199944,3579.7,3579.6,0.4441]
[1732915510320,0.4141,3579.7,3579.6,0.72316]
[1732915510516,0.4141,3579.7,3579.6,1.02316]
[1732915510723,0.27904,3579.9,3579.7,0.27905]
[1732915511019,0.72464,3579.9,3579.7,0.70585]
[1732915512323,0.72464,3579.9,3579.7,0.4268]
[1732915512324,0.4456,3579.9,3579.7,0.4268]
[1732915512720,0.72464,3579.9,3579.8,0.27905]
[1732915513027,3.2078,3580.4,3579.8,0.90628483]
[1732915513328,0.27902,3580.2,3580.0,0.27903]
[1732915513619,0.27902,3580.2,3580.1,0.4206]
[1732915513826,0.27902,3580.2,3580.1,0.69962]
[1732915514330,0.70421,3580.3,3580.1,0.69962]
[1732915514733,0.4252,3580.3,3580.1,0.77962]
[1732915515044,0.27902,3580.2,3580.1,0.77962]
[1732915515324,0.27902,3580.2,3580.1,0.5006]
[1732915515629,0.70421,3580.3,3580.1,0.77962]
[1732915515824,0.27901,3580.3,3580.2,0.4488]
[1732915516023,3.2078,3580.4,3580.3,0.27901]
[1732915516845,3.2078,3580.4,3580.3,0.39901]
[1732915517535,0.279,3580.5,3580.3,0.39901]
[1732915517726,4.65293944,3580.7,3580.3,0.39901]
[1732915517925,4.65293944,3580.7,3580.3,0.12]
[1732915518128,0.279,3580.5,3580.3,0.399]
[1732915518525,0.4163,3580.7,3580.3,1.14883944]
[1732915518733,0.69528,3580.7,3580.6,0.27898]
[1732915519634,0.4163,3580.7,3580.6,0.27898]
[1732915520034,0.4163,3580.7,3580.6,0.4079]
[1732915520233,0.4163,3580.7,3580.6,0.68688]
[1732915522234,0.27896,3581.0,3580.8,0.27896]
[1732915522436,0.71606,3581.0,3580.9,0.27896]
[1732915522640,0.4371,3581.0,3580.7,0.4097]
[1732915522940,0.71606,3581.0,3580.8,0.27897]
[1732915523131,0.27896,3580.9,3580.8,0.27897]
[1732915523328,0.4371,3581.0,3580.8,0.27897]
[1732915523546,0.71606,3581.0,3580.8,0.27897]
[1732915524231,0.71606,3581.0,3580.7,1.43853944]
[1732915524430,0.71606,3581.0,3580.9,0.27896]
[1732915524832,0.4371,3581.0,3580.9,0.27896]
[1732915525141,0.71605,3581.0,3580.7,1.43853944]
[1732915525337,0.4371,3581.0,3580.7,1.43853944]
[1732915525542,0.27896,3580.9,3580.8,0.27897]
[1732915526639,0.71606,3581.0,3580.9,0.27896]
[1732915526841,0.4371,3581.0,3580.9,0.27896]
[1732915527032,0.71605,3581.0,3580.9,1.30779944]
[1732915527236,0.4371,3581.0,3580.9,1.30779944]
[1732915527441,0.71605,3581.0,3580.9,1.30779944]
[1732915527739,0.4371,3581.0,3580.9,1.30779944]
[1732915528831,0.4253,3581.4,3580.9,4.23663944]
[1732915529032,0.27894,3581.2,3581.1,1.02883944]
[1732915530936,0.4498,3581.3,3581.1,1.02883944]
[1732915531137,0.27894,3581.2,3581.1,1.02883944]
[1732915531540,0.4498,3581.3,3581.1,1.02883944]
[1732915531745,0.27894,3581.2,3581.1,1.02883944]
[1732915532443,0.72873,3581.3,3581.1,1.02883944]
[1732915532845,0.72873,3581.3,3581.1,1.30778944]
[1732915533145,0.72873,3581.3,3581.1,1.02883944]
[1732915533540,0.72873,3581.3,3581.1,1.30778944]
[1732915533743,0.27892,3581.5,3581.2,0.27893]
[1732915533944,0.27893,3581.4,3581.2,0.4316]
[1732915534250,0.416,3581.7,3581.2,0.4316]
[1732915534442,0.27892,3581.4,3581.3,1.02883944]
[1732915534654,0.416,3581.6,3581.3,1.02883944]
[1732915534960,0.27891,3581.5,3581.3,1.02883944]
[1732915535650,0.416,3581.6,3581.3,1.02883944]
[1732915535949,0.27892,3581.4,3581.1,1.30777944]
[1732915536241,0.4111,3581.3,3581.1,1.30777944]
[1732915536846,0.4398,3581.2,3581.1,1.30777944]
[1732915537248,3.2078,3581.9,3581.8,0.27889]
[1732915537450,0.4398,3582.1,3582.0,0.27888]
[1732915537638,0.4111,3582.5,3582.0,1.02883944]
[1732915537836,0.4398,3582.4,3582.2,3.2078]
[1732915538138,1.02883944,3582.3,3581.8,1.02883944]
[1732915538338,0.27886,3582.2,3581.7,3.2078]
[1732915538539,0.27889,3581.8,3581.7,3.2078]
[1732915538837,1.02883944,3582.0,3581.2,3.2078]
[1732915539043,3.2078,3582.1,3581.2,3.2078]
[1732915539044,0.4398,3581.7,3581.2,3.2078]
[1732915539239,0.4398,3581.7,3581.6,1.30774944]
[1732915539439,0.4407,3581.9,3581.6,1.02883944]
[1732915539644,0.4407,3581.9,3581.8,0.27889]
[1732915540141,0.4152,3582.0,3581.9,0.27888]
[1732915540445,0.4152,3582.0,3581.9,1.30771944]
[1732915541047,0.27885,3582.4,3582.1,0.27887]
[1732915541243,0.4152,3582.3,3582.0,0.68817]
[1732915541452,0.4152,3582.3,3582.0,3.89597]
[1732915541744,0.69406,3582.3,3582.0,3.89598]
[1732915542055,0.27886,3582.2,3582.0,3.6171]
[1732915542247,0.69406,3582.3,3582.0,3.89597]
[1732915542550,0.4152,3582.3,3582.2,0.27886]
[1732915542748,0.4407,3582.6,3582.2,1.02883944]
[1732915542945,1.14894,3582.6,3582.3,0.27885]
[1732915543350,1.14893,3582.6,3582.3,0.27885]
[1732915543553,0.8701,3582.6,3582.5,0.27884]
[1732915543851,1.14893,3582.6,3582.4,0.27884]
[1732915544049,0.8701,3582.6,3582.2,1.02883944]
[1732915544646,1.14893,3582.6,3582.4,0.27884]
[1732915544851,0.8701,3582.6,3582.5,0.27884]
[1732915545244,0.4294,3582.6,3582.5,0.27884]
[1732915545447,0.4171,3582.9,3582.8,0.27881]
[1732915545750,0.27877,3583.4,3582.8,1.02883944]
[1732915546148,0.27877,3583.4,3582.6,0.8457]
[1732915546149,0.27877,3583.4,3583.2,0.27878]
[1732915546348,4.0655,3583.5,3583.1,1.02883944]
[1732915546646,4.0655,3583.5,3583.2,0.72238]
[1732915546647,0.27877,3583.4,3583.2,0.72238]
[1732915547148,3.2078,3583.5,3583.2,0.4436]
[1732915547354,0.4406,3584.1,3583.4,1.02883944]
[1732915547554,0.4406,3584.1,3583.7,4.23663944]
[1732915548249,0.71932,3584.1,3584.0,0.27872]
[1732915549452,0.4406,3584.1,3584.0,0.27872]
[1732915549645,0.71934,3584.1,3584.0,0.27872]
[1732915550049,0.4406,3584.1,3583.7,4.23663944]
[1732915550248,0.71935,3584.1,3583.9,0.27875]
[1732915550449,0.27876,3583.8,3583.7,3.48657]
[1732915550649,0.27876,3583.9,3583.8,0.27876]
[1732915550852,0.27876,3583.9,3583.7,3.48657]
[1732915551056,0.27876,3583.9,3583.7,3.2078]
[1732915551256,3.2078,3583.9,3583.2,3.6514]
[1732915551555,3.2078,3583.5,3582.7,3.2078]
[1732915551745,0.8599,3583.4,3582.7,3.2078]
[1732915551947,0.8599,3583.4,3582.7,3.48665]
[1732915552148,0.27883,3583.0,3582.7,3.48665]
[1732915552351,0.8599,3583.4,3582.7,3.48665]
[1732915552352,0.8599,3583.4,3582.7,3.2078]
[1732915552549,0.27884,3582.8,3582.7,3.2078]
[1732915552961,0.27884,3582.9,3582.7,3.48664]
[1732915553251,0.8599,3583.4,3582.7,3.2078]
[1732915553454,0.27884,3582.8,3582.7,3.48665]
[1732915553656,0.27884,3582.9,3582.8,0.27884]
[1732915553857,1.5959,3583.4,3582.7,3.2078]
[1732915554356,0.27883,3583.0,3582.7,3.2078]
[1732915554549,0.27883,3583.0,3582.9,0.27883]
[1732915554749,0.27882,3583.1,3583.0,0.27882]
[1732915555151,0.27881,3583.3,3583.2,0.27881]
[1732915555350,0.8599,3583.4,3582.8,1.12041]
[1732915555654,0.8599,3583.4,3583.2,0.27881]
[1732915555655,0.27881,3583.3,3583.2,0.27881]
[1732915556353,0.27881,3583.2,3583.1,0.27881]
[1732915556864,0.27882,3583.1,3583.0,0.27882]
[1732915557057,0.27883,3583.0,3582.9,0.27882]
[1732915558858,3.2078,3583.1,3582.3,3.2078]
[1732915559055,3.2078,3582.5,3582.1,0.4135]
[1732915559250,0.27889,3582.3,3582.2,0.27888]
[1732915559455,0.27889,3582.2,3582.1,0.69239]
[1732915559664,0.27888,3582.3,3582.2,0.27889]
[1732915560259,0.4261,3582.4,3582.3,0.27888]
[1732915560451,0.4261,3582.4,3582.1,0.4135]
[1732915560452,3.48667,3582.5,3582.1,0.4135]
[1732915560655,3.48667,3582.5,3582.4,0.27887]
[1732915561064,0.27888,3582.4,3582.3,0.27887]
[1732915562663,3.2078,3582.7,3582.6,0.27886]
[1732915562962,3.48665,3582.7,3582.6,0.27886]
[1732915563159,1.1943,3583.2,3582.3,0.69721]
[1732915563364,0.27883,3583.1,3583.0,0.27882]
[1732915563559,3.6563,3583.3,3582.9,0.27883]
[1732915563560,0.27884,3583.0,3582.9,0.27883]
[1732915563751,3.6563,3583.3,3582.9,0.27883]
[1732915563956,3.6563,3583.3,3582.7,1.12543]
[1732915564160,0.27882,3583.2,3583.1,0.27881]
[1732915564758,0.27883,3583.1,3583.0,0.27882]
[1732915566061,3.6563,3583.3,3582.7,0.4283]
[1732915566263,3.2078,3583.3,3583.2,0.27881]
[1732915566977,1.13501,3583.9,3583.0,5.33250854]
[1732915566978,0.4381,3583.9,3583.0,5.33250854]
[1732915567260,3.2078,3584.1,3583.4,2.12470854]
[1732915567463,3.2078,3584.1,3583.5,4.83104814]
[1732915567766,0.27876,3583.9,3583.8,0.27876]
[1732915568464,3.2078,3584.1,3583.5,1.2686]
[1732915568662,0.27876,3583.9,3583.8,0.27875]
[1732915570460,0.27876,3584.0,3583.9,0.27875]
[1732915570664,3.48654,3584.1,3584.0,0.27875]
[1732915570859,3.2078,3584.1,3584.0,0.27875]
[1732915571767,3.48654,3584.1,3584.0,0.27875]
[1732915572068,3.2078,3584.1,3584.0,0.27875]
[1732915572665,0.69676,3584.7,3583.5,1.96556]
[1732915572666,3.2078,3584.6,3583.8,2.82161854]
[1732915573060,0.27873,3584.3,3584.2,0.27873]
[1732915573261,3.2078,3584.6,3583.8,2.12470854]
[1732915573467,3.2078,3584.6,3584.5,0.27871]
[1732915574167,3.4865,3584.6,3584.5,0.27871]
[1732915574375,3.2078,3584.6,3584.5,0.27871]
[1732915575072,3.4865,3584.6,3584.5,0.27871]
[1732915575275,3.48651,3584.6,3584.5,0.27871]
[1732915575468,3.2078,3584.6,3584.2,2.97990854]
[1732915575768,3.2078,3584.6,3584.2,0.8552]
[1732915575769,0.27872,3584.3,3584.2,0.8552]
[1732915575973,0.6968,3584.4,3583.3,3.2078]
[1732915576174,0.27877,3583.8,3583.7,0.27876]
[1732915576371,3.2078,3584.0,3583.4,0.4222]
[1732915576576,0.27878,3583.8,3583.7,0.27876]
[1732915576765,0.27879,3583.5,3583.4,0.70099]
[1732915576967,0.27878,3583.6,3583.5,0.27877]
[1732915577670,3.2078,3584.0,3583.4,0.4222]
[1732915577874,0.27878,3583.7,3583.6,0.27877]
[1732915579185,0.27879,3583.6,3583.5,0.27878]
[1732915579877,0.27878,3583.7,3583.6,0.27877]
[1732915580079,0.27879,3583.6,3583.5,0.27878]
[1732915580580,3.2078,3584.0,3583.3,0.8805]
[1732915580777,0.27879,3583.4,3583.3,0.8805]
[1732915581084,0.27878,3583.7,3583.6,0.27877]
[1732915581883,0.27877,3583.9,3583.8,0.27876]
[1732915582082,3.2078,3584.0,3583.3,0.8805]
[1732915582304,0.27878,3583.8,3583.7,0.27877]
[1732915584380,3.48656,3584.0,3583.9,0.27876]
[1732915587393,0.4492,3584.3,3583.6,2.12470854]
[1732915587584,0.27874,3584.2,3584.1,0.27873]
[1732915587778,0.27873,3584.3,3584.2,0.27872]
[1732915588192,0.27872,3584.4,3584.3,0.27872]
[1732915589085,0.27872,3584.5,3584.4,0.27871]
[1732915591087,0.27873,3584.3,3584.2,0.27872]
[1732915591592,0.4099,3584.7,3584.1,0.8683]
[1732915591793,0.4099,3584.7,3584.1,0.69783]
[1732915591794,0.27873,3584.2,3584.1,0.69783]
[1732915592292,1.10666,3584.7,3584.1,0.4191]
[1732915592492,0.27873,3584.4,3584.3,0.27871]
[1732915592885,0.4099,3584.7,3584.1,0.4191]
[1732915593081,0.27871,3584.6,3584.5,0.2787]
[1732915593291,0.4099,3584.7,3584.1,0.4191]
[1732915593495,0.27873,3584.3,3584.2,0.27872]
[1732915593688,0.4099,3584.7,3584.1,0.4191]
[1732915593886,0.27872,3584.5,3584.4,0.27871]
[1732915594393,0.27873,3584.4,3584.3,0.27872]
[1732915595182,0.4099,3584.7,3584.1,0.4191]
[1732915595387,0.27873,3584.4,3584.3,0.27871]
[1732915595600,0.27873,3584.3,3584.2,0.27873]
[1732915595905,0.27872,3584.5,3584.4,0.27871]
[1732915597007,0.27873,3584.4,3584.3,0.27872]
[1732915597197,1.10665,3584.7,3584.1,0.4191]
[1732915597400,0.27873,3584.2,3584.1,0.69784]
[1732915597599,0.27873,3584.3,3584.2,0.27872]
[1732915598201,0.69676,3584.6,3584.1,0.8488]
[1732915598503,0.27873,3584.2,3584.1,0.8488]
[1732915598805,0.4099,3584.7,3584.1,0.8488]
[1732915599004,0.27873,3584.4,3584.3,0.27872]
[1732915600304,0.27871,3584.6,3584.5,0.2787]
[1732915602604,0.4099,3584.7,3584.1,0.4191]
[1732915602805,0.27873,3584.4,3584.3,0.27871]
[1732915607399,0.27872,3584.5,3584.4,2.40340854]
[1732915608911,0.27871,3584.6,3584.5,0.2787]
[1732915609207,3.48649,3584.8,3584.7,0.27869]
[1732915609810,3.48649,3584.8,3584.7,0.71769]
[1732915610320,3.48649,3584.8,3584.7,0.439]
[1732915612106,3.2078,3584.8,3584.2,0.4212]
[1732915612411,0.27872,3584.3,3584.2,0.69993]
[1732915613605,0.27873,3584.2,3584.1,0.4335]
[1732915613811,0.27873,3584.2,3584.1,0.71224]
[1732915617713,0.27873,3584.2,3584.1,1.14014]
[1732915621720,0.27873,3584.2,3583.8,0.27875]
[1732915621721,0.27877,3583.9,3583.8,0.27875]
[1732915622030,0.27877,3583.9,3583.8,0.70225]
[1732915623221,0.27877,3583.9,3583.8,0.4235]
[1732915623419,0.27877,3583.9,3583.8,0.70226]
[1732915623620,0.27877,3583.9,3583.8,0.4235]
[1732915624722,0.27877,3583.9,3583.8,0.70226]
[1732915625920,0.27877,3583.9,3583.8,0.4235]
[1732915626722,0.27877,3583.9,3583.8,0.70226]
[1732915630127,0.27877,3583.9,3583.8,1.72955148]
[1732915633522,3.2078,3584.2,3583.8,2.47808296]
[1732915633724,0.27873,3584.3,3584.2,0.27873]
[1732915633924,0.27873,3584.3,3584.2,1.30602148]
[1732915634124,0.27872,3584.4,3584.3,0.27872]
[1732915634429,0.27872,3584.4,3584.3,0.72772]
[1732915635529,3.48651,3584.6,3584.5,0.27871]
[1732915635727,3.2078,3584.6,3584.5,1.30600148]
[1732915637830,3.4865,3584.6,3584.5,1.30600148]
[1732915640830,3.2078,3584.6,3584.3,0.449]
[1732915641129,0.27872,3584.4,3584.3,0.449]
[1732915641536,0.27879,3583.6,3583.4,4.38495951]
[1732915641750,0.27879,3583.5,3583.3,4.23509148]
[1732915642035,0.27882,3583.2,3583.1,1.30610148]
[1732915643436,0.27882,3583.2,3583.1,1.02729148]
[1732915643829,0.4148,3583.5,3582.9,4.34513]
[1732915644137,0.27883,3583.0,3582.9,4.34513]
[1732915645536,0.27883,3583.0,3582.9,4.0663]
[1732915646635,0.27883,3583.0,3582.9,4.34513]
[1732915647132,0.27883,3583.0,3582.9,4.0663]
[1732915647530,3.2078,3583.1,3582.5,0.4275]
[1732915647732,0.27886,3582.6,3582.5,0.4275]
[1732915647930,0.27886,3582.6,3582.5,0.70636]
[1732915648144,0.27886,3582.6,3582.5,0.4275]
[1732915648433,3.2078,3582.7,3582.2,2.12588212]
[1732915648639,0.27888,3582.3,3582.2,2.40476212]
[1732915649435,3.2078,3582.7,3582.2,2.12588212]
[1732915649640,0.27888,3582.3,3582.2,2.12588212]
[1732915650232,0.27888,3582.3,3582.2,2.40477212]
[1732915650738,3.2078,3582.7,3582.2,2.12588212]
[1732915651343,3.2078,3582.7,3582.4,0.27887]
[1732915651344,0.27887,3582.5,3582.4,0.27887]
[1732915651834,0.4117,3582.8,3582.7,0.27885]
[1732915652039,0.27882,3583.1,3583.0,0.27882]
[1732915652244,4.0709,3583.5,3582.8,1.2835]
[1732915652442,0.27883,3583.0,3582.9,0.27883]
[1732915652742,0.27881,3583.3,3583.2,0.27881]
[1732915653238,4.0709,3583.5,3583.1,0.27882]
[1732915653239,0.27882,3583.2,3583.1,0.27882]
[1732915653434,4.0709,3583.5,3582.8,1.2835]
[1732915653743,0.27881,3583.3,3583.2,0.27881]
[1732915656739,3.6329,3583.5,3583.2,0.27881]
[1732915656943,0.2788,3583.4,3583.3,0.2788]
[1732915657545,0.2788,3583.3,3583.2,0.2788]
[1732915659043,3.48659,3583.5,3583.4,0.27879]
[1732915659344,3.2078,3583.5,3583.4,0.27879]
[1732915661245,3.48659,3583.5,3583.4,0.27879]
[1732915661440,3.2078,3583.5,3583.1,2.12588212]
[1732915661642,3.48659,3583.5,3583.4,0.27879]
[1732915664144,3.48659,3583.5,3582.9,0.74]
[1732915664145,3.2078,3583.5,3582.9,0.74]
[1732915664445,0.70641,3583.4,3583.3,0.2788]
[1732915667345,0.27882,3583.2,3583.1,0.27881]
[1732915667839,0.69701,3583.3,3582.8,1.2835]
[1732915668047,0.27886,3582.6,3582.5,0.27885]
[1732915668245,0.27886,3582.6,3582.5,0.70955]
[1732915668940,0.27886,3582.6,3582.5,0.4307]
[1732915669247,0.4522,3582.9,3582.6,0.27886]
[1732915669248,3.48665,3582.7,3582.6,0.27886]
[1732915670043,0.27885,3582.7,3582.6,0.27886]
[1732915673251,0.4522,3582.9,3582.4,0.4307]
[1732915673448,0.27886,3582.5,3582.4,0.70957]
[1732915673853,3.6491,3582.7,3582.4,0.4307]
[1732915674052,0.27886,3582.6,3582.5,0.27886]
[1732915674650,0.27885,3582.8,3582.7,0.27884]
[1732915674853,0.73104,3582.9,3582.8,0.27884]
[1732915675249,0.27884,3582.9,3582.8,0.27884]
[1732915675648,0.27883,3583.0,3582.9,0.27883]
[1732915676051,3.2078,3583.1,3583.0,0.27883]
[1732915676447,3.2078,3583.1,3582.4,3.29658212]
[1732915676745,3.48662,3583.1,3583.0,0.27883]
[1732915677554,0.27881,3583.3,3583.2,0.2788]
[1732915679452,0.2788,3583.4,3583.3,0.27879]
[1732915682153,0.70609,3583.5,3583.4,0.27879]
[1732915684955,0.27879,3583.4,3583.3,1.30641992]
[1732915686160,3.48658,3583.6,3583.3,1.02761992]
[1732915686357,3.2078,3583.6,3583.5,0.27879]
[1732915686564,3.48658,3583.6,3583.5,0.27879]
[1732915686858,3.2078,3583.6,3583.5,0.27879]
[1732915687462,3.48658,3583.6,3583.5,0.27879]
[1732915687662,0.27879,3583.5,3583.4,0.27879]
[1732915688167,3.48659,3583.6,3583.5,0.27879]
[1732915689968,3.2078,3583.6,3583.5,0.27879]
[1732915690262,0.27878,3583.7,3583.3,1.02761992]
[1732915690561,0.27878,3583.7,3583.6,0.27878]
[1732915690960,3.48657,3583.8,3583.7,0.27877]
[1732915691159,3.2078,3583.8,3583.7,1.13687]
[1732915691460,3.48656,3583.8,3583.7,1.13687]
[1732915691666,0.444,3584.0,3583.7,0.4147]
[1732915691866,0.444,3584.0,3583.9,0.27876]
[1732915691867,0.72275,3584.0,3583.9,0.27876]
[1732915692764,0.72275,3584.0,3583.9,1.30637992]
[1732915692955,0.27876,3583.9,3583.8,0.27876]
[1732915693161,0.444,3584.0,3583.7,0.8489]
[1732915693370,0.444,3584.0,3583.9,0.27876]
[1732915694871,0.72275,3584.0,3583.9,0.27876]
[1732915697161,0.444,3584.0,3583.7,0.8489]
[1732915697369,0.27876,3583.9,3583.8,0.27876]
[1732915699572,0.27878,3583.8,3583.7,0.27877]
[1732915704064,0.27878,3583.8,3583.6,1.02761992]
[1732915704065,0.444,3584.0,3583.6,1.72456992]
[1732915704266,0.72276,3584.0,3583.9,0.27876]
[1732915706883,0.444,3584.0,3583.9,0.27876]
[1732915707073,3.2078,3584.2,3583.9,1.02761992]
[1732915707274,0.27874,3584.1,3584.0,1.10264]
[1732915707484,0.27874,3584.1,3584.0,1.52734]
[1732915708076,3.2078,3584.2,3584.0,1.52734]
[1732915708077,3.2078,3584.2,3584.0,1.2486]
[1732915708389,3.2078,3584.6,3584.1,0.27874]
[1732915708675,0.2787,3584.7,3584.6,0.27869]
[1732915714178,0.27872,3584.5,3584.4,0.2787]
[1732915714977,0.27872,3584.5,3584.0,4.4564]
[1732915714978,1.02761992,3584.6,3584.0,4.4564]
[1732915715185,4.23541992,3584.3,3583.7,3.48657]
[1732915715387,0.27876,3583.8,3583.7,3.48657]
[1732915716684,0.27876,3583.8,3583.7,0.27877]
[1732915718487,0.4359,3584.0,3583.5,1.02761992]
[1732915718786,0.4521,3584.2,3583.8,1.02761992]
[1732915718985,0.27874,3584.2,3584.1,1.30634992]
[1732915719188,0.27874,3584.2,3584.1,4.51414992]
[1732915719684,1.53867,3584.6,3584.3,0.27872]
[1732915719685,0.27873,3584.4,3584.3,0.27872]
[1732915719984,0.27872,3584.5,3584.4,0.27871]
[1732915720188,0.27872,3584.5,3584.4,1.30632992]
[1732915721181,0.2787,3584.6,3584.5,0.2787]
[1732915721685,0.2787,3584.6,3584.5,0.6869]